bitfinex-derivatives/quotes_BTCF0:USTF0_20250527
["timestamp","ask_amount","ask_price","bid_price","bid_amount"]
[1748334185915,0.186992,109650.0,109640.0,1.70033472]
[1748334186308,0.219792,109650.0,109640.0,1.70033472]
[1748334186510,0.0326,109660.0,109640.0,1.51023639]
[1748334186814,0.2149135,109670.0,109640.0,1.51023639]
[1748334186815,0.3060715,109670.0,109660.0,0.1823266]
[1748334187015,0.3060715,109670.0,109660.0,1.0216924]
[1748334187016,0.30651337,109670.0,109660.0,1.0216924]
[1748334187415,0.33861337,109670.0,109660.0,0.8931266]
[1748334187806,0.33861337,109670.0,109660.0,0.90341022]
[1748334188210,0.36921337,109670.0,109660.0,0.93421022]
[1748334188606,0.36921337,109670.0,109660.0,0.94181673]
[1748334189717,0.36921337,109670.0,109660.0,0.99964673]
[1748334189921,0.36921337,109670.0,109660.0,1.04855289]
[1748334190411,0.36921337,109670.0,109660.0,1.05055289]
[1748334190821,0.36921337,109670.0,109660.0,1.05155289]
[1748334191714,0.36921337,109670.0,109660.0,1.0490077]
[1748334192414,0.36921337,109670.0,109660.0,1.00134068]
[1748334192821,0.36921337,109670.0,109660.0,0.9911777]
[1748334193326,0.3233119,109670.0,109660.0,1.47280507]
[1748334194222,0.32375377,109670.0,109660.0,1.47280507]
[1748334194411,0.32375377,109670.0,109660.0,1.48292864]
[1748334195619,0.32375377,109670.0,109660.0,1.35436284]
[1748334195818,0.32375377,109670.0,109660.0,1.48292864]
[1748334196425,0.32375377,109670.0,109660.0,1.35436284]
[1748334196623,0.32375377,109670.0,109660.0,1.48292864]
[1748334197721,0.32375377,109670.0,109660.0,1.35436284]
[1748334197926,0.32375377,109670.0,109660.0,1.48292864]
[1748334199224,0.32814559,109670.0,109660.0,1.48292864]
[1748334199526,0.09981182,109670.0,109660.0,1.48292864]
[1748334199726,0.09981182,109670.0,109660.0,1.51362864]
[1748334200220,0.09981182,109670.0,109660.0,1.50602213]
[1748334200221,0.06282,109670.0,109660.0,1.50602213]
[1748334200419,0.0627,109670.0,109660.0,2.00474213]
[1748334200620,0.06282,109670.0,109660.0,2.00474213]
[1748334200924,0.0627,109670.0,109660.0,2.00474213]
[1748334201124,0.06282,109670.0,109660.0,2.00474213]
[1748334201313,0.06709182,109670.0,109660.0,2.00474213]
[1748334201517,0.06721182,109670.0,109660.0,2.00474213]
[1748334201923,0.06721182,109670.0,109660.0,1.87617633]
[1748334202112,0.06721182,109670.0,109660.0,2.00474213]
[1748334202524,0.06721182,109670.0,109660.0,2.06239369]
[1748334202716,0.06721182,109670.0,109660.0,2.07577192]
[1748334203720,0.24952202,109670.0,109660.0,2.08530635]
[1748334203919,0.24952202,109670.0,109660.0,2.49262635]
[1748334205724,0.24952202,109670.0,109660.0,2.36406055]
[1748334205725,0.06721182,109670.0,109660.0,2.36406055]
[1748334206022,0.06721182,109670.0,109660.0,2.49262635]
[1748334207422,0.06721182,109670.0,109660.0,2.31029975]
[1748334207618,0.06721182,109670.0,109660.0,2.49262635]
[1748334209030,0.06721182,109670.0,109660.0,2.36406055]
[1748334209228,0.06721182,109670.0,109660.0,2.49262635]
[1748334209527,0.06721182,109670.0,109660.0,2.67562635]
[1748334209831,0.24952212,109670.0,109660.0,2.54706055]
[1748334210030,0.06721182,109670.0,109660.0,2.67562635]
[1748334210532,0.06721182,109670.0,109660.0,2.66609192]
[1748334211131,0.24952212,109670.0,109660.0,2.66609192]
[1748334211320,0.06721182,109670.0,109660.0,2.66609192]
[1748334213234,0.3546,109700.0,109690.0,0.182277]
[1748334213531,0.35504187,109700.0,109690.0,1.376877]
[1748334213727,0.3546,109700.0,109690.0,1.469477]
[1748334213928,0.3546,109700.0,109690.0,1.5980428]
[1748334214234,0.5369804,109700.0,109690.0,1.5980428]
[1748334214626,0.5368604,109700.0,109690.0,1.5980428]
[1748334214928,0.5369804,109700.0,109690.0,1.5980428]
[1748334215128,0.5368604,109700.0,109690.0,1.5990428]
[1748334215432,0.54125222,109700.0,109690.0,1.5990428]
[1748334215823,0.54137222,109700.0,109690.0,1.470477]
[1748334216024,0.54137222,109700.0,109690.0,1.5990428]
[1748334216534,0.57137222,109700.0,109690.0,1.470477]
[1748334216735,0.57137222,109700.0,109690.0,1.5990428]
[1748334217032,0.57537222,109700.0,109690.0,1.5990428]
[1748334218233,0.57537222,109700.0,109690.0,1.6128517]
[1748334218430,0.45801182,109700.0,109690.0,1.6128517]
[1748334218739,0.45801182,109700.0,109690.0,1.6138517]
[1748334218740,0.63627242,109700.0,109690.0,1.6138517]
[1748334219839,0.63627242,109700.0,109690.0,1.4852859]
[1748334220040,0.63627242,109700.0,109690.0,1.6138517]
[1748334220942,0.63627242,109700.0,109690.0,1.4852859]
[1748334221144,0.63627242,109700.0,109690.0,1.6138517]
[1748334221334,0.45401182,109700.0,109690.0,1.6138517]
[1748334221637,0.63627242,109700.0,109690.0,1.6138517]
[1748334223241,0.63627242,109700.0,109690.0,1.4852859]
[1748334223442,0.63627242,109700.0,109690.0,1.6138517]
[1748334224043,0.45401182,109700.0,109690.0,1.6138517]
[1748334224241,0.45445369,109700.0,109690.0,1.4852859]
[1748334224441,0.45445369,109700.0,109690.0,1.6138517]
[1748334224642,0.63671439,109700.0,109690.0,1.6138517]
[1748334225242,0.45445369,109700.0,109690.0,1.6138517]
[1748334225443,0.63671429,109700.0,109690.0,1.6138517]
[1748334225839,0.63671429,109700.0,109690.0,1.4852859]
[1748334226144,0.63671429,109700.0,109690.0,1.6138517]
[1748334226449,0.45445369,109700.0,109690.0,1.6138517]
[1748334227042,0.45445369,109700.0,109690.0,1.4852859]
[1748334227343,0.45445369,109700.0,109690.0,1.6138517]
[1748334227543,0.63671429,109700.0,109690.0,1.6138517]
[1748334229248,0.63671429,109700.0,109690.0,1.4852859]
[1748334229446,0.63671429,109700.0,109690.0,1.6138517]
[1748334229645,0.63671429,109700.0,109690.0,1.4852859]
[1748334229944,0.63671429,109700.0,109690.0,1.5528517]
[1748334232641,0.45445369,109700.0,109690.0,1.5528517]
[1748334232842,0.63659439,109700.0,109690.0,1.5528517]
[1748334233040,0.63671439,109700.0,109690.0,1.64035304]
[1748334233244,0.63671439,109700.0,109690.0,1.817825]
[1748334234145,0.63671439,109700.0,109690.0,1.6892592]
[1748334234342,0.63671439,109700.0,109690.0,1.817825]
[1748334234549,0.63671439,109700.0,109690.0,1.850225]
[1748334236153,0.63671439,109700.0,109690.0,1.79257344]
[1748334236954,0.63671439,109700.0,109690.0,1.80017608]
[1748334238350,0.63671439,109700.0,109690.0,1.79257344]
[1748334238645,0.63671439,109700.0,109690.0,1.72887344]
[1748334240447,0.63671439,109700.0,109690.0,1.38643064]
[1748334240750,1.17548019,109700.0,109690.0,0.66483064]
[1748334240944,1.40771439,109700.0,109690.0,0.66483064]
[1748334243849,1.40771439,109700.0,109690.0,0.53771506]
[1748334244354,1.40771439,109700.0,109690.0,0.52390616]
[1748334244557,1.40771439,109700.0,109690.0,0.53151604]
[1748334244744,1.04691439,109700.0,109690.0,0.53151604]
[1748334244944,1.40771439,109700.0,109690.0,0.53151604]
[1748334245249,1.40771439,109700.0,109690.0,0.34851604]
[1748334245647,1.53628019,109700.0,109690.0,0.34851604]
[1748334246755,1.40771439,109700.0,109690.0,0.34851604]
[1748334247052,1.40771439,109700.0,109690.0,0.2977005]
[1748334251051,1.40775439,109700.0,109690.0,0.2977005]
[1748334251351,1.40875439,109700.0,109690.0,0.34652773]
[1748334251551,1.40875439,109700.0,109690.0,0.34552773]
[1748334254554,1.40875439,109700.0,109690.0,0.34932639]
[1748334254955,1.53732019,109700.0,109690.0,0.34932639]
[1748334260855,1.40875439,109700.0,109690.0,0.34932639]
[1748334261760,1.53732019,109700.0,109690.0,0.34932639]
[1748334264061,1.53720019,109700.0,109690.0,0.34932639]
[1748334264763,1.53720019,109700.0,109690.0,0.34552773]
[1748334265960,1.52429043,109700.0,109690.0,0.34552773]
[1748334266176,1.52429043,109700.0,109690.0,0.37872773]
[1748334267066,1.52429043,109700.0,109690.0,0.34552773]
[1748334267450,1.40863439,109700.0,109690.0,0.34552773]
[1748334267657,1.52429043,109700.0,109690.0,0.37872773]
[1748334268158,1.52429043,109700.0,109690.0,0.49394985]
[1748334268667,1.52384856,109700.0,109690.0,0.49394985]
[1748334268870,1.52429043,109700.0,109690.0,0.49394985]
[1748334269770,1.52429043,109700.0,109690.0,0.48824935]
[1748334270667,1.52429043,109700.0,109690.0,0.45504935]
[1748334271166,1.52429043,109700.0,109690.0,0.48674935]
[1748334271555,1.52429043,109700.0,109690.0,0.43692212]
[1748334271965,1.61545043,109700.0,109690.0,0.40522212]
[1748334272269,1.20521043,109700.0,109690.0,0.4109361]
[1748334272472,1.61545043,109700.0,109690.0,0.4109361]
[1748334272654,1.61545043,109700.0,109690.0,0.4423361]
[1748334276066,1.20521043,109700.0,109690.0,0.44994598]
[1748334276366,1.99371439,109700.0,109690.0,0.44994598]
[1748334276559,2.10937043,109700.0,109690.0,0.44994598]
[1748334277471,2.10937043,109700.0,109690.0,0.55892929]
[1748334277675,2.01821043,109700.0,109690.0,0.55892929]
[1748334277978,2.01821043,109700.0,109690.0,0.55131941]
[1748334279577,1.11405043,109700.0,109690.0,0.55131941]
[1748334279776,2.01821043,109700.0,109690.0,0.55131941]
[1748334280276,2.01821043,109700.0,109690.0,0.67843499]
[1748334282578,2.01821043,109700.0,109690.0,0.61938541]
[1748334286886,1.90255439,109700.0,109690.0,0.61938541]
[1748334287076,2.01821043,109700.0,109690.0,0.61938541]
[1748334289286,1.90255439,109700.0,109690.0,0.61938541]
[1748334289490,2.01821043,109700.0,109690.0,0.61938541]
[1748334292785,2.01821043,109700.0,109690.0,0.56325819]
[1748334295679,2.01821043,109700.0,109690.0,0.35655851]
[1748334295990,2.01821043,109700.0,109690.0,0.53416329]
[1748334299592,1.90255439,109700.0,109690.0,0.53416329]
[1748334299786,2.01821043,109700.0,109690.0,0.53416329]
[1748334301597,1.90255439,109700.0,109690.0,0.53416329]
[1748334301793,2.01821043,109700.0,109690.0,0.53416329]
[1748334302796,1.60793043,109700.0,109690.0,0.53416329]
[1748334302998,2.01821043,109700.0,109690.0,0.53416329]
[1748334303189,1.60793043,109700.0,109690.0,0.53416329]
[1748334303388,2.01821043,109700.0,109690.0,0.59576329]
[1748334303791,2.01833043,109700.0,109690.0,0.60337317]
[1748334304890,2.01833043,109700.0,109690.0,0.59576329]
[1748334305096,2.01833043,109700.0,109690.0,0.65488596]
[1748334305999,1.90267439,109700.0,109690.0,0.65678186]
[1748334306396,2.01833043,109700.0,109690.0,0.65678186]
[1748334307091,2.01393861,109700.0,109690.0,0.65678186]
[1748334307594,1.10977861,109700.0,109690.0,0.65678186]
[1748334307797,2.01245861,109700.0,109690.0,0.65678186]
[1748334307997,2.01257861,109700.0,109690.0,0.65678186]
[1748334308205,2.01697043,109700.0,109690.0,0.65678186]
[1748334308497,2.01697043,109700.0,109690.0,0.66250359]
[1748334309700,2.01697043,109700.0,109690.0,0.65678186]
[1748334309997,1.11417043,109700.0,109690.0,0.65678186]
[1748334310193,1.62605043,109700.0,109690.0,0.7724379]
[1748334310698,1.44549439,109700.0,109690.0,0.7724379]
[1748334311092,1.44561439,109700.0,109690.0,0.7724379]
[1748334311701,0.54225252,109700.0,109690.0,0.954715]
[1748334311898,0.54225252,109700.0,109690.0,1.315515]
[1748334312103,0.95265252,109700.0,109690.0,1.315515]
[1748334312800,0.95253252,109700.0,109690.0,1.315515]
[1748334312987,0.95265252,109700.0,109690.0,1.25639233]
[1748334313389,0.54237252,109700.0,109690.0,1.59755232]
[1748334313802,0.54225252,109700.0,109690.0,2.00783232]
[1748334314002,0.54237252,109700.0,109690.0,2.00783232]
[1748334314802,0.54237252,109700.0,109690.0,1.89217628]
[1748334315011,0.54237252,109700.0,109690.0,1.58994244]
[1748334315396,0.54137252,109700.0,109690.0,1.33994244]
[1748334315596,0.54137252,109700.0,109690.0,1.24978245]
[1748334316211,0.54137252,109700.0,109690.0,1.26029761]
[1748334317607,0.54137252,109700.0,109690.0,1.62109761]
[1748334318108,0.54137252,109700.0,109690.0,1.55350406]
[1748334320407,0.54137252,109700.0,109690.0,1.56112167]
[1748334321811,0.54137252,109700.0,109690.0,1.5439889]
[1748334323013,0.54137252,109700.0,109690.0,1.60019944]
[1748334323311,0.0786597,109720.0,109700.0,0.1822605]
[1748334323514,0.2733477,109720.0,109710.0,0.9993438]
[1748334323709,0.2733477,109720.0,109710.0,1.40499984]
[1748334323710,0.2277869,109720.0,109710.0,1.40499984]
[1748334324212,0.2279069,109720.0,109710.0,1.40499984]
[1748334324514,0.2297869,109720.0,109710.0,1.41484844]
[1748334324706,0.2299069,109720.0,109710.0,1.41484844]
[1748334324911,0.2299069,109720.0,109710.0,1.2991924]
[1748334325213,0.2299069,109720.0,109710.0,1.42345274]
[1748334325604,0.2619069,109720.0,109710.0,1.42345274]
[1748334325906,0.2599069,109720.0,109710.0,1.41712806]
[1748334326110,0.2599069,109720.0,109710.0,1.41812806]
[1748334327696,0.2900069,109720.0,109710.0,1.41812806]
[1748334327902,0.2900069,109720.0,109710.0,1.60112806]
[1748334328403,0.2900069,109720.0,109710.0,1.54173043]
[1748334329015,0.2143472,109720.0,109710.0,1.54173043]
[1748334329215,0.2142272,109720.0,109710.0,1.67012718]
[1748334329511,0.2143472,109720.0,109710.0,1.67012718]
[1748334329713,0.33546918,109730.0,109720.0,0.1822273]
[1748334329909,0.36836918,109730.0,109720.0,1.1709273]
[1748334330914,0.36836918,109730.0,109720.0,1.17661547]
[1748334332720,0.36936918,109730.0,109720.0,1.17661547]
[1748334333017,0.37036918,109730.0,109720.0,1.17661547]
[1748334333609,0.37036918,109730.0,109720.0,1.2265492]
[1748334333817,0.36936918,109730.0,109720.0,1.2275492]
[1748334334406,0.36836918,109730.0,109720.0,1.2285492]
[1748334335518,0.372761,109730.0,109720.0,1.2285492]
[1748334336017,0.372761,109730.0,109720.0,1.35694595]
[1748334336516,0.36836918,109730.0,109720.0,1.35694595]
[1748334336920,0.77852918,109730.0,109720.0,1.35694595]
[1748334337315,0.36836918,109730.0,109720.0,1.2285492]
[1748334337523,0.372761,109730.0,109720.0,1.35694595]
[1748334337717,0.340981,109730.0,109720.0,1.35694595]
[1748334338114,0.0375487,109730.0,109720.0,1.35694595]
[1748334338314,0.2196395,109730.0,109720.0,1.35694595]
[1748334338514,0.2197595,109730.0,109720.0,1.35694595]
[1748334338819,0.2197595,109730.0,109720.0,1.41638895]
[1748334339014,0.2197595,109730.0,109720.0,1.82842508]
[1748334339321,0.2197595,109730.0,109720.0,1.91956108]
[1748334339518,0.2197595,109730.0,109720.0,1.41830508]
[1748334339822,0.21536768,109730.0,109720.0,1.41830508]
[1748334340122,0.24746768,109730.0,109720.0,1.41830508]
[1748334340318,0.24746768,109730.0,109720.0,1.28230403]
[1748334340523,0.24746768,109730.0,109720.0,1.41070078]
[1748334340722,0.2518595,109730.0,109720.0,1.41070078]
[1748334341923,0.2518595,109730.0,109720.0,1.29181919]
[1748334342124,0.2518595,109730.0,109720.0,1.42021594]
[1748334342526,0.2518595,109730.0,109720.0,1.91077594]
[1748334342820,0.2848595,109730.0,109720.0,1.78237919]
[1748334343026,0.2848595,109730.0,109720.0,1.91077594]
[1748334343219,0.2848595,109730.0,109720.0,1.78237919]
[1748334343628,0.2848595,109730.0,109720.0,1.91077594]
[1748334345820,0.2848595,109730.0,109720.0,1.91837572]
[1748334346529,0.2848595,109730.0,109720.0,1.85893272]
[1748334347224,0.2848595,109730.0,109720.0,1.73053597]
[1748334347521,0.2848595,109730.0,109720.0,1.85893272]
[1748334348128,0.2848595,109730.0,109720.0,1.84941756]
[1748334348929,0.2848595,109730.0,109720.0,1.72102081]
[1748334349228,0.2848595,109730.0,109720.0,1.84941756]
[1748334350732,0.2848595,109730.0,109720.0,1.84181778]
[1748334352223,0.2848595,109730.0,109720.0,1.71342103]
[1748334352419,0.2848595,109730.0,109720.0,1.84181778]
[1748334352927,0.2848595,109730.0,109720.0,1.71342103]
[1748334353133,0.2848595,109730.0,109720.0,1.84181778]
[1748334353528,0.2848595,109730.0,109720.0,1.71342103]
[1748334353730,0.2848595,109730.0,109720.0,1.84181778]
[1748334354524,0.2848595,109730.0,109720.0,1.90126078]
[1748334354721,0.2848595,109730.0,109720.0,1.77286403]
[1748334355023,0.2848595,109730.0,109720.0,1.90126078]
[1748334355537,0.28530137,109730.0,109720.0,1.03657673]
[1748334355836,0.69538137,109730.0,109720.0,0.64437673]
[1748334356037,0.81097314,109730.0,109720.0,0.64437673]
[1748334356537,1.17177314,109730.0,109720.0,0.64437673]
[1748334357032,1.17177314,109730.0,109720.0,0.58493373]
[1748334357335,1.17377314,109730.0,109720.0,0.76516123]
[1748334357527,1.17377314,109730.0,109720.0,0.39993373]
[1748334357729,1.17377314,109730.0,109720.0,0.40754883]
[1748334357929,1.05818137,109730.0,109720.0,0.40754883]
[1748334358737,1.05818137,109730.0,109720.0,0.39993373]
[1748334358932,1.05818137,109730.0,109720.0,0.58216113]
[1748334359739,1.05818137,109730.0,109720.0,0.39993373]
[1748334360536,1.05818137,109730.0,109720.0,0.58216123]
[1748334364928,1.05818137,109730.0,109720.0,0.58786301]
[1748334365340,1.05818137,109730.0,109720.0,0.40563551]
[1748334365838,1.05818137,109730.0,109720.0,0.58786301]
[1748334367041,1.18661169,109730.0,109720.0,0.40563551]
[1748334367640,1.05818137,109730.0,109720.0,0.40563551]
[1748334368640,1.05818137,109730.0,109720.0,0.40943514]
[1748334369147,1.05806137,109730.0,109720.0,0.40943514]
[1748334377946,1.17364978,109730.0,109720.0,0.40943514]
[1748334381042,1.17364978,109730.0,109720.0,0.40563551]
[1748334381248,1.26478578,109730.0,109720.0,0.40563551]
[1748334381850,1.26478578,109730.0,109720.0,0.24563551]
[1748334383255,1.26478578,109730.0,109720.0,0.19285214]
[1748334383455,1.26478578,109730.0,109720.0,0.15372604]
[1748334383956,1.27766212,109730.0,109720.0,0.15372604]
[1748334384159,1.33457547,109730.0,109720.0,0.1508739]
[1748334384658,1.20611072,109730.0,109720.0,0.1508739]
[1748334384959,1.33457547,109730.0,109720.0,0.1508739]
[1748334385262,1.33457547,109730.0,109720.0,0.094532]
[1748334385455,1.33457547,109730.0,109720.0,0.0347609]
[1748334385654,0.1822276,109720.0,109710.0,0.00665738]
[1748334385855,1.12728947,109720.0,109710.0,0.32665738]
[1748334386454,1.25575422,109720.0,109710.0,0.32665738]
[1748334386756,1.25575422,109720.0,109710.0,0.32765738]
[1748334387660,1.25575422,109720.0,109710.0,0.32865738]
[1748334387858,1.25575422,109720.0,109710.0,0.17316658]
[1748334388049,0.1822442,109710.0,109700.0,9e-08]
[1748334388254,0.1822608,109700.0,109690.0,9e-08]
[1748334388559,1.66798555,109700.0,109690.0,0.22000009]
[1748334389056,1.66798555,109700.0,109690.0,0.22]
[1748334389256,1.5395208,109700.0,109690.0,0.22]
[1748334389462,1.66798555,109700.0,109690.0,0.22]
[1748334390058,1.66998555,109700.0,109690.0,0.22]
[1748334390455,1.66998555,109700.0,109690.0,0.2521]
[1748334390761,1.5415208,109700.0,109690.0,0.2521]
[1748334391556,1.5445208,109700.0,109690.0,0.2521]
[1748334392463,1.55429009,109700.0,109690.0,0.2521]
[1748334393050,1.68275484,109700.0,109690.0,0.2521]
[1748334395657,1.68714666,109700.0,109690.0,0.2521]
[1748334395861,1.68714666,109700.0,109690.0,0.30174739]
[1748334396965,1.68714666,109700.0,109690.0,0.11804595]
[1748334399068,1.68714666,109700.0,109690.0,0.06839856]
[1748334399566,1.27694666,109700.0,109690.0,0.06839856]
[1748334399767,1.68722666,109700.0,109690.0,0.06839856]
[1748334401964,0.61565262,109700.0,109690.0,0.25067576]
[1748334402174,0.99553262,109700.0,109690.0,0.51286475]
[1748334402363,0.99565262,109700.0,109690.0,0.4154]
[1748334402759,0.9911408,109700.0,109690.0,0.4154]
[1748334403261,1.0227408,109700.0,109690.0,0.4154]
[1748334403564,1.0218608,109700.0,109690.0,0.4154]
[1748334404571,0.6115808,109700.0,109690.0,0.4154]
[1748334404768,1.0198608,109700.0,109690.0,0.4154]
[1748334405866,1.02425262,109700.0,109690.0,0.4154]
[1748334406659,1.05435262,109700.0,109690.0,0.4154]
[1748334408472,1.05435262,109700.0,109690.0,0.46505604]
[1748334409973,0.18877262,109700.0,109690.0,1.01383044]
[1748334410165,0.59905262,109700.0,109690.0,1.01383044]
[1748334410474,0.18877262,109700.0,109690.0,1.01383044]
[1748334410672,0.59893262,109700.0,109690.0,1.01383044]
[1748334410975,0.59905262,109700.0,109690.0,1.01383044]
[1748334411370,0.59905262,109700.0,109690.0,1.14229519]
[1748334411681,0.18877262,109700.0,109690.0,1.14229519]
[1748334411873,0.59705262,109700.0,109690.0,1.14229519]
[1748334412279,0.59693262,109700.0,109690.0,1.14229519]
[1748334412469,0.59705262,109700.0,109690.0,1.14229519]
[1748334413974,0.59705262,109700.0,109690.0,1.01383044]
[1748334414580,0.59705262,109700.0,109690.0,1.02326802]
[1748334415480,0.62785262,109700.0,109690.0,1.01383044]
[1748334415782,0.21757262,109700.0,109690.0,1.01383044]
[1748334415975,0.62781262,109700.0,109690.0,1.01383044]
[1748334417184,0.59701262,109700.0,109690.0,1.01383044]
[1748334417386,0.59701262,109700.0,109690.0,1.02322917]
[1748334417782,0.18677262,109700.0,109690.0,1.02322917]
[1748334417980,0.18677262,109700.0,109690.0,1.15169392]
[1748334418185,0.59701262,109700.0,109690.0,1.15359219]
[1748334419287,0.18677262,109700.0,109690.0,1.15359219]
[1748334419481,0.59701262,109700.0,109690.0,1.15359219]
[1748334419789,0.63001262,109700.0,109690.0,1.02512744]
[1748334419991,0.63001262,109700.0,109690.0,1.07632105]
[1748334420178,0.63001262,109700.0,109690.0,1.2047858]
[1748334420788,0.63001262,109700.0,109690.0,1.07632105]
[1748334420978,0.63001262,109700.0,109690.0,1.2047858]
[1748334421389,0.63001262,109700.0,109690.0,1.21431656]
[1748334421787,0.21977262,109700.0,109690.0,1.21431656]
[1748334421990,0.63001262,109700.0,109690.0,1.21431656]
[1748334424003,0.21977262,109700.0,109690.0,1.21431656]
[1748334424205,0.63001262,109700.0,109690.0,1.21431656]
[1748334425198,0.66151262,109700.0,109690.0,1.21431656]
[1748334426397,0.66151262,109700.0,109690.0,1.08585181]
[1748334427899,0.69161262,109700.0,109690.0,1.08585181]
[1748334429498,0.69161262,109700.0,109690.0,1.21431656]
[1748334432404,0.69161262,109700.0,109690.0,1.08585181]
[1748334432710,0.69161262,109700.0,109690.0,1.21431656]
[1748334434310,0.69161262,109700.0,109690.0,1.01315308]
[1748334434498,0.69161262,109700.0,109690.0,0.43797588]
[1748334434697,0.82007737,109700.0,109690.0,0.43797588]
[1748334435000,1.66979737,109700.0,109690.0,0.43797588]
[1748334435406,1.55080849,109700.0,109690.0,0.43797588]
[1748334436207,1.55080849,109700.0,109690.0,0.43605912]
[1748334436711,1.55080849,109700.0,109690.0,0.37727004]
[1748334436910,1.55080849,109700.0,109690.0,0.49275078]
[1748334438113,1.67927324,109700.0,109690.0,0.49275078]
[1748334438405,1.55080849,109700.0,109690.0,0.49084373]
[1748334442610,0.64217262,109700.0,109690.0,0.49084373]
[1748334442798,0.64205262,109700.0,109690.0,0.67312083]
[1748334443003,1.05241262,109700.0,109690.0,0.83228558]
[1748334443305,1.0480208,109700.0,109690.0,0.86388558]
[1748334443506,1.0480208,109700.0,109690.0,0.73542083]
[1748334444007,0.2768608,109700.0,109690.0,1.09622083]
[1748334444212,0.2769808,109700.0,109690.0,1.09622083]
[1748334444512,0.69161262,109700.0,109690.0,1.09622083]
[1748334445012,0.69161262,109700.0,109690.0,1.12722083]
[1748334445406,0.69161262,109700.0,109690.0,1.12151388]
[1748334446113,0.28137262,109700.0,109690.0,1.12151388]
[1748334446409,0.69161262,109700.0,109690.0,1.12151388]
[1748334447007,0.28137262,109700.0,109690.0,1.24997863]
[1748334447314,0.69161262,109700.0,109690.0,1.24997863]
[1748334447510,0.6872208,109700.0,109690.0,1.24997863]
[1748334447702,0.6872208,109700.0,109690.0,1.25950939]
[1748334447902,0.6872208,109700.0,109690.0,1.31833129]
[1748334448407,0.69161262,109700.0,109690.0,1.31833129]
[1748334454114,0.69161262,109700.0,109690.0,1.18986654]
[1748334454415,0.69161262,109700.0,109690.0,1.30880053]
[1748334454710,0.69161262,109700.0,109690.0,1.08484185]
[1748334455907,0.69161262,109700.0,109690.0,0.9563771]
[1748334456109,0.69161262,109700.0,109690.0,1.08484185]
[1748334456408,0.69161262,109700.0,109690.0,1.13458442]
[1748334456613,0.69161262,109700.0,109690.0,1.14411924]
[1748334457214,0.69161262,109700.0,109690.0,0.78331924]
[1748334457404,0.69161262,109700.0,109690.0,1.14411924]
[1748334457605,0.69161262,109700.0,109690.0,1.01565449]
[1748334457905,0.69161262,109700.0,109690.0,1.14411924]
[1748334461300,0.69161262,109700.0,109690.0,1.19341509]
[1748334462208,0.69161262,109700.0,109690.0,1.01904034]
[1748334462610,0.69161262,109700.0,109690.0,1.06448614]
[1748334462810,0.69161262,109700.0,109690.0,1.19295089]
[1748334463917,0.69161262,109700.0,109690.0,1.18009967]
[1748334464609,0.28137262,109700.0,109690.0,1.18009967]
[1748334464806,0.28137262,109700.0,109690.0,1.06448614]
[1748334465010,0.28137262,109700.0,109690.0,1.18009967]
[1748334466317,0.28137262,109700.0,109690.0,1.06448614]
[1748334466617,0.28137262,109700.0,109690.0,1.17056387]
[1748334467614,0.28137262,109700.0,109690.0,1.18010113]
[1748334469921,0.2769808,109700.0,109690.0,1.18010113]
[1748334470822,0.28137262,109700.0,109690.0,1.18010113]
[1748334471622,0.28137262,109700.0,109690.0,1.05495034]
[1748334471920,0.28137262,109700.0,109690.0,1.06199063]
[1748334472721,0.28137262,109700.0,109690.0,1.03099063]
[1748334473223,0.28137262,109700.0,109690.0,0.99939063]
[1748334473416,0.28137262,109700.0,109690.0,1.00893637]
[1748334473615,0.28137262,109700.0,109690.0,1.11903569]
[1748334476526,0.28125262,109700.0,109690.0,1.11903569]
[1748334479729,0.28125262,109700.0,109690.0,1.00342216]
[1748334479929,0.28125262,109700.0,109690.0,1.11903569]
[1748334480631,0.28125262,109700.0,109690.0,1.00342216]
[1748334480833,0.28125262,109700.0,109690.0,1.11903569]
[1748334483134,0.28125262,109700.0,109690.0,0.82114506]
[1748334483334,0.28125262,109700.0,109690.0,0.75823569]
[1748334491641,0.28125262,109700.0,109690.0,0.64262216]
[1748334491936,0.28125262,109700.0,109690.0,0.75823569]
[1748334492335,0.80710615,109700.0,109690.0,0.64262216]
[1748334492534,0.80710615,109700.0,109690.0,0.75823569]
[1748334492936,0.69149262,109700.0,109690.0,0.75823569]
[1748334493332,0.69149262,109700.0,109690.0,0.57595859]
[1748334493536,0.69149262,109700.0,109690.0,0.75823579]
[1748334493837,0.69149262,109700.0,109690.0,0.57595859]
[1748334494740,0.69149262,109700.0,109690.0,0.46034506]
[1748334496543,0.69149262,109700.0,109690.0,0.64262226]
[1748334497043,0.69149262,109700.0,109690.0,0.46034506]
[1748334497243,0.69149262,109700.0,109690.0,0.64262226]
[1748334497743,0.69149262,109700.0,109690.0,0.46034506]
[1748334497944,0.69149262,109700.0,109690.0,0.64262226]
[1748334500553,0.69149262,109700.0,109690.0,0.45833243]
[1748334500848,0.69149262,109700.0,109690.0,0.62192226]
[1748334504156,0.69149262,109700.0,109690.0,0.47234506]
[1748334504351,1.16790615,109700.0,109690.0,0.43964506]
[1748334504957,1.16790615,109700.0,109690.0,0.44727311]
[1748334506555,0.75766615,109700.0,109690.0,0.44727311]
[1748334506757,0.75766615,109700.0,109690.0,0.37806944]
[1748334506758,1.17745262,109700.0,109690.0,0.37806944]
[1748334507457,1.1730608,109700.0,109690.0,0.37806944]
[1748334508157,1.1730608,109700.0,109690.0,0.37044139]
[1748334508357,0.6872208,109700.0,109690.0,0.48605492]
[1748334508656,0.6872208,109700.0,109690.0,0.58115492]
[1748334508859,0.6871008,109700.0,109690.0,0.4151]
[1748334509059,0.6872208,109700.0,109690.0,0.4151]
[1748334509953,0.80283433,109700.0,109690.0,0.4151]
[1748334510458,0.80722615,109700.0,109690.0,0.4151]
[1748334511158,0.80722615,109700.0,109690.0,0.42081575]
[1748334512851,0.80722615,109700.0,109690.0,0.38981575]
[1748334513047,1.16802615,109700.0,109690.0,0.30008445]
[1748334515461,1.17102615,109700.0,109690.0,0.30008445]
[1748334515853,1.17302615,109700.0,109690.0,0.30008445]
[1748334517064,1.17302615,109700.0,109690.0,0.35053934]
[1748334517549,1.17302615,109700.0,109690.0,0.35434542]
[1748334520860,0.76278615,109700.0,109690.0,0.35434542]
[1748334521061,1.17306615,109700.0,109690.0,0.35434542]
[1748334524973,1.05745262,109700.0,109690.0,0.35434542]
[1748334525174,1.17306615,109700.0,109690.0,0.35434542]
[1748334529280,1.05745262,109700.0,109690.0,0.35434542]
[1748334529578,1.17306615,109700.0,109690.0,0.35434542]
[1748334533681,0.40198615,109700.0,109690.0,0.35434542]
[1748334533974,0.64717262,109700.0,109690.0,0.35434542]
[1748334534175,1.65678615,109700.0,109690.0,0.38664542]
[1748334534373,1.65678615,109700.0,109690.0,0.41904542]
[1748334534574,1.65690615,109700.0,109690.0,0.41904542]
[1748334534981,1.65690615,109700.0,109690.0,0.38283934]
[1748334538483,1.65690615,109700.0,109690.0,0.35053934]
[1748334539379,1.65678615,109700.0,109690.0,0.38563934]
[1748334539580,1.65690615,109700.0,109690.0,0.38563934]
[1748334539982,1.65690615,109700.0,109690.0,0.44528547]
[1748334540182,1.65690615,109700.0,109690.0,0.47898547]
[1748334541482,1.65690615,109700.0,109690.0,0.51418547]